{"text_format":"1","workbook":"xlsx","n_sheets":5,"sheets":["Datos","Fomulario de Aplicación","N.° trabajadores en cada sitio","Req para audit remota","RIESGO_SGAS"],"not_rendered":{"charts":0,"images":4,"macros":1,"external_links":0,"defined_names":43,"comments":3,"pivot_tables":0},"unopened":[],"bounds":{"document_bytes":16777216,"sheet_cells":100000,"rows_first":2000,"rows_last":500,"rows_between":2000,"halvings":0,"cell_chars":16384,"cell_head_chars":4096},"cells_cut":0,"cells_raw":0,"read":"whole","date_system":"1900"}

{"sheet":"Datos","index":0,"n_rows":24,"n_cols":6,"rows_kept":24,"cut":false,"hidden":true,"merged":[]}
[]
[null,"NORMAS",null,"ACREDITADORAS",null,"¿Cómo se enteró de los servicios de :"]
[null,"ISO 37001:2016",null,"INACAL",null,"Sin responder"]
[null,"NTP ISO 37001:2017",null,"ONAC",null,"Facebook"]
[null,"ISO 26000:2010",null,"RECONOCIMIENTO ICO",null,"LinkedIn"]
[null," ",null,null,null,"Pagina WEB"]
[null,null,null,null,null,"Empresa consultora"]
[null,"CICLO DE LA CERTIFICACIÓN",null,"FRECUENCIA DE LOS SEGUIMIENTOS",null,"Un referido"]
[null,"Certificación inicial",null,"Anual",null,"Directorio de acreditados (INACAL - ONAC - Otros)"]
[null,"Certificación - Transferencia",null,"Semestral"]
[null,"Certificación - Seguimiento",null," "]
[null,"Re- Certificación",null,null,null,"Requisitos de transferencia"]
[null,"Solicitud - Ampliación de alcance",null,null,null,"He adjuntado la información"]
[null,"Auditoria Especial",null,null,null,"He justificado la transferencia"]
[null," ",null,null,null,"No se adjunta la información solicitada"]
[null,null,null,null,null,"_ _ _ _ _ _ _ _ _"]
[null,"TIPO DE AUDITORIA",null,"RESPUESTAS DEL CUESTIONARIO",null,"Sí, autorizo"]
[null,"Individual",null,"Si"]
[null,"Integrada",null,"No"]
[null,"Combinada",null,"Sin responder"]
[null,"Conjunta"]
[null,"Evaluación de cumplimiento"]
[null," "]
[null," "]

{"sheet":"Fomulario de Aplicación","index":1,"n_rows":189,"n_cols":14,"rows_kept":189,"cut":false,"hidden":false,"merged":[[87,1,87,6],[90,1,90,6],[91,1,91,6],[107,1,107,6],[110,1,110,6],[117,1,117,6],[99,1,99,6],[101,1,101,6],[98,10,98,11],[113,1,113,6],[97,1,97,6],[87,7,87,9],[96,10,96,11],[92,1,92,6],[93,1,93,6],[94,1,94,6],[95,1,95,6],[96,1,96,6],[98,1,98,6],[102,1,102,6],[103,1,103,6],[171,8,171,9],[163,1,163,4],[163,5,163,7],[164,1,164,3],[164,5,164,7],[165,1,165,4],[165,5,165,7],[156,1,156,3],[156,7,156,9],[186,1,186,2],[186,3,186,4],[187,1,187,2],[187,3,187,4],[182,1,182,2],[183,1,183,2],[183,3,183,4],[184,1,184,2],[184,3,184,4],[185,1,185,2],[185,3,185,4],[182,3,182,4],[149,5,149,6],[150,5,150,6],[180,9,180,11],[173,2,173,3],[173,4,173,5],[173,8,173,9],[175,2,175,3],[176,4,176,5],[177,0,177,11],[179,1,179,2],[179,3,179,4],[179,5,179,6],[180,1,180,2],[180,3,180,4],[180,5,180,6],[180,7,180,8],[179,7,179,8],[179,9,179,11],[166,1,166,4],[166,5,166,7],[167,1,167,4],[167,5,167,7],[169,1,169,11],[171,2,171,3],[147,5,147,6],[147,2,147,3],[154,1,154,11],[155,1,155,5],[162,0,162,11],[145,8,145,9],[146,8,146,9],[148,2,148,3],[149,2,149,3],[150,2,150,3],[147,8,147,9],[148,8,148,9],[149,8,149,9],[150,8,150,9],[146,2,146,3],[145,5,145,6],[146,5,146,6],[157,1,157,3],[157,7,157,9],[158,1,158,2],[158,7,158,9],[160,2,160,9],[152,1,152,11],[148,5,148,6],[66,5,67,6],[104,1,104,6],[114,1,114,6],[137,1,137,6],[138,1,138,6],[130,1,130,4],[131,1,131,6],[132,1,132,6],[133,1,133,6],[134,1,134,6],[135,1,135,6],[136,1,136,6],[125,1,125,6],[118,1,118,6],[122,1,122,6],[123,1,123,6],[100,1,100,6],[121,1,121,6],[116,1,116,6],[106,1,106,6],[120,1,120,6],[82,1,82,7],[84,1,84,11],[86,1,86,4],[56,5,56,6],[56,7,56,8],[57,2,57,3],[57,5,57,6],[57,7,57,8],[58,2,58,3],[143,1,143,5],[143,6,143,7],[145,2,145,3],[126,1,126,6],[139,1,139,6],[140,1,140,6],[124,1,124,6],[59,2,59,3],[59,5,59,6],[59,7,59,8],[60,2,60,3],[60,5,60,6],[60,7,60,8],[63,1,63,3],[65,1,65,6],[66,1,67,1],[66,2,67,3],[66,4,67,4],[8,2,8,7],[8,9,8,11],[9,2,9,7],[10,2,10,7],[11,2,11,7],[12,2,12,7],[14,1,14,11],[21,10,21,11],[22,10,22,11],[16,2,16,3],[16,6,17,8],[16,9,17,9],[16,11,17,11],[17,2,17,3],[19,1,19,11],[21,8,21,9],[0,0,1,1],[0,2,0,7],[0,9,0,11],[1,2,1,7],[1,9,1,11],[2,1,2,11],[6,9,6,11],[7,9,7,11],[3,1,3,11],[4,2,4,7],[4,9,4,11],[5,2,5,7],[5,9,5,11],[6,2,6,7],[7,2,7,7],[24,2,24,5],[26,1,26,11],[27,2,27,9],[28,0,29,0],[28,1,29,1],[28,2,29,9],[31,1,31,5],[33,4,33,8],[34,4,34,8],[81,2,81,4],[37,1,37,2],[38,1,38,4],[43,1,43,11],[45,6,45,7],[53,7,54,8],[53,9,54,9],[53,5,54,6],[55,5,55,6],[55,7,55,8],[47,6,47,7],[51,1,51,7],[52,2,52,5],[53,1,54,1],[53,2,54,3],[53,4,54,4],[55,2,55,3],[40,1,40,2],[41,1,41,4],[41,5,41,7],[38,5,38,7],[58,5,58,6],[58,7,58,8],[56,2,56,3],[188,1,188,11],[66,9,67,9],[68,2,68,3],[69,2,69,3],[70,2,70,3],[71,2,71,3],[73,1,73,4],[75,1,75,4],[76,1,76,7],[119,1,119,6],[108,1,108,6],[112,1,112,6],[89,1,89,6],[109,1,109,6],[68,5,68,6],[69,5,69,6],[70,5,70,6],[71,5,71,6],[66,7,67,8],[68,7,68,8],[69,7,69,8],[70,7,70,8],[71,7,71,8],[77,3,77,8]]}
[null,null,"SISTEMA DE GESTIÓN ",null,null,null,null,null,"Código del documento:","ICO-FO-04"]
[null,null,"FORMATO DE APLICACIÓN",null,null,null,null,null,"Versión:",8]
[null,"Estimado solicitante,\n\nGracias por elegirnos. Toda la organización quiere transmitirle que trabaja para seguir cumpliendo sus expectativas y, si es posible, incluso superarlas. Es por esto que lo invitamos a llenar el formulario de aplicacióncompletando cada uno de los campos de esta \"SOLICITUD\", y , en caso no aplique algun espacio, por favor indique N.A. - NO APLICA sin dejar espacios vacios.\n\n                                                                                                                                                                                                                                                                                                                Gracias por su confianza"]
[1,"DETALLES DE LA COMPAÑÍA"]
[1.1000000000000001,"Nombre de la Compañía:*","DESCRIBA …",null,null,null,null,null,"1.2  N.° RUC:*","DESCRIBA ..."]
[1.3,"Dirección:\nFiscal*","DESCRIBA ...",null,null,null,null,null," 1.4  N.° Telf           Fijo:*","DESCRIBA ..."]
[1.5,"Idioma solicitado para el servicio:","DESCRIBA ...",null,null,null,null,null," 1.6  N.° Celular:*","DESCRIBA ..."]
[1.7,"Nombre del Gerente General:*","DESCRIBA ...",null,null,null,null,null,"1.13  Pág. web:","DESCRIBA ..."]
[1.8,"Persona de Contacto:*","DESCRIBA ...",null,null,null,null,null,"1.14  Fecha de la solicitud:","DESCRIBA ..."]
[1.9,"Cargo:*","DESCRIBA ..."]
[1.1000000000000001,"E-mail 1 Principal:*","DESCRIBA ..."]
[1.1100000000000001,"E-mail 2:","DESCRIBA ..."]
[1.1200000000000001,"Costumbres sociales de la compañía:*","DESCRIBA ..."]
[]
[2,"PROGRAMA DE CERTIFICACIÓN REQUERIDO"]
[]
[2.1,"Certificación requerida:"," ",null,null,null,"\nEn el caso de aplicar varias certificaciones, por favor seleccione la opción \"Auditoria Combinada\" o \"Auditoría Integrada\", de lo contrario por favor seleccione una de las siguientes opciones:\n- Auditoría Individual\n- Auditoría conjunta\nLa explicación de cada tipo de auditoría se encuentra en la nota explicativa\n",null,null," ",null,null,"ISO 37001 C/ INACAL"]
[2.2000000000000002,"Frecuencia de vigilancia:"," ",null,null,null,null,null,null,null,null,null,"ISO 37001 C/ ONAC"]
[null,null,null,null,null,null,null,null,null,null,null,null,"ISO 37001 C/ INACAL Y ONAC"]
[3,"NORMA(S)",null,null,null,null,null,null,null,null,null,null,"ISO 9001 C/ INACAL"]
[null,null,null,null,null,null,null,null,null,null,null,null,"ISO 14001 C/ INACAL"]
[3.1,"Seleccione la norma a auditar:",null,null,null,null,3.3,"Seleccione la norma a auditar:",null,null,null,null,"ISO 45001 C/ INACAL","ISO 37001:2016"]
[null,null,null,null,null,null,null,null,null,null,null,null,"ISO/IEC 27001 C/ ONAC","NTP/ISO 37001:2017"]
[null,null,null,null,null,null,null,null,null,null,null,null,null,"ISO 26000:2010"]
[3.2,"Otras normas:","DESCRIBA ...",null,null,null,null,null,null,null,null,null,null,"ISO 9001:2015"]
[null,null,null,null,null,null,null,null,null,null,null,null,null,"ISO 14001:2015"]
[4,"DETALLES DEL SISTEMA",null,null,null,null,null,null,null,null,null,null,null,"ISO 45001:2018"]
[4.0999999999999996,"Alcance de la Certificación 1:","Ejemplo:\nEjecución de obras civiles tal como obras de saneamiento basico y transitabilidad vehicular",null,null,null,null,null,null,null,null,null,null,"ISO/IEC 27001:2013"]
[4.2,"Alcance de la Certificación 2","DESCRIBA ..."]
[]
[]
[4.3,"Por favor, detalle y apoye los puntos de no aplicabilidad en el alcance: Haga click en el boton \"AGREGAR\" para incluir una fila en caso requiera declarar más de una \"No aplicabilidad\""]
[]
[null,null,"Norma","Requisito","Justificación"]
[null,null,"NA","NA","NA"]
[]
[]
[4.4000000000000004,"¿Existen consultores involucrados?:",null,"NO"]
[null,"Si la respuesta es sí, mencione el nombre de los consultores o empresa consultora:",null,null,null,"NA"]
[]
[4.5,"¿La organización cuenta con un Sistema automatizado o Software especializado?:",null,"NO"]
[null,"Si la respuesta es sí, mencione el Sistema de automatización o Software:",null,null,null,"NA"]
[]
[5,"INFORMACIÓN DE LOS SITIOS QUE SERÁN AUDITADOS"]
[]
[5.0999999999999996,"Modalidad de trabajo","Sin responder",null,null,5.3,"Cantidad de sedes a auditar:",null,0]
[]
[5.2,"Indicar horario laboral",null,null,null,5.4,"Desea que utilices técnicas de Auditoría Asistidas por Ordenador?",null,"Sin responder"]
[null,"Mañana:\nInicio y Fin"," - - - - - - - - - -"]
[]
[null,"Tarde:\nInicio y Fin"," - - - - - - - - - -"]
[5.5,"Mencione los lugares y el número de personal en cada uno de ellos. Considere el personal involucrado en cada Sistema de Gestión, incluyendo personal administrativo como de RRHH, Compras, TI, Almacén, etc."]
[null,"Sitios permanentes","(Sedes implicadas en el Sistema de Gestión)"]
[null,"Sitios permanentes","Dirección",null,"Región","\nEspecifique cómo llegar a sus instalaciones (Tiempo desde un punto de referencia)",null,"Confirmar los requisitos de ingresos para las instalaciones (Vacunas, exámenes médicos, otros)",null,"N° de trabajadores\n(Clic e ingrese N.° de trabajadores de cada sitio)\n\n"]
[]
[null,"Sitio 1","Texto del cliente",null,"texto del cliente","texto del cliente",null,"texto del cliente / NA",null,{"$f":"'N.° trabajadores en cada sitio'!H21","v":0}]
[null,"Sitio 2","Texto del cliente",null,"texto del cliente","texto del cliente",null,"texto del cliente / NA",null,{"$f":"'N.° trabajadores en cada sitio'!H39","v":0}]
["*","Sitio 3","Texto del cliente",null,"texto del cliente","texto del cliente",null,"texto del cliente / NA",null,{"$f":"'N.° trabajadores en cada sitio'!H56","v":0}]
[null,"Sitio 4","Texto del cliente",null,"texto del cliente","texto del cliente",null,"texto del cliente / NA",null,{"$f":"'N.° trabajadores en cada sitio'!H73","v":0}]
[null,"Sitio 5","Texto del cliente",null,"texto del cliente","texto del cliente",null,"texto del cliente / NA",null,{"$f":"'N.° trabajadores en cada sitio'!H90","v":0}]
[null,"Sitio 6","Texto del cliente",null,"texto del cliente","texto del cliente",null,"texto del cliente / NA",null,{"$f":"'N.° trabajadores en cada sitio'!H107","v":0}]
[]
[null,null,null,null,null,null,null,null,null,"Espacio unico para ICO"]
[null,"Nota: Añada las líneas que necesite"]
[null,"Sitios Temporales"]
[null,"(sólo aplica para Proyectos, obras y oficinas temporales en ejecución)"]
[null,"Sitios Temporales","Dirección",null,"Región","Especifique cómo llegar a sus instalaciones (Tiempo desde un punto de referencia)",null,"Confirmar los requisitos de ingresos para las instalaciones (Vacunas, exámenes médicos, otros)",null,"N° de trabajadores\n(Clic e ingrese N.° de trabajadores de cada sitio)\n\n"]
[]
[null,"Sitio 1 TEMPORAL 1","Texto del cliente",null,"texto del cliente","texto del cliente",null,"texto del cliente / NA",null,{"$f":"IF('N.° trabajadores en cada sitio'!P21>0,'N.° trabajadores en cada sitio'!P21,\"\")","v":""}]
[null,"Sitio 2 TEMPORAL 2","Texto del cliente",null,"texto del cliente","texto del cliente",null,"texto del cliente / NA",null,{"$f":"IF('N.° trabajadores en cada sitio'!P39>0,'N.° trabajadores en cada sitio'!P39,\"\")","v":""}]
[null,"Sitio 3 TEMPORAL 3","Texto del cliente",null,"texto del cliente","texto del cliente",null,"texto del cliente / NA",null,{"$f":"IF('N.° trabajadores en cada sitio'!P56>0,'N.° trabajadores en cada sitio'!P56,\"\")","v":""}]
[null,"Sitio 4 TEMPORAL 4","Texto del cliente",null,"texto del cliente","texto del cliente",null,"texto del cliente / NA",null,{"$f":"IF('N.° trabajadores en cada sitio'!P73>0,'N.° trabajadores en cada sitio'!P73,\"\")","v":""}]
[]
[null,"Nota: Añada las líneas que necesit: (sólo aplica para Proyectos, obras y oficinas temporales en ejecución)"]
[]
[5.6,"Indique cuáles son los procesos contratados externamente"]
[null,"En caso de contratar procesos externamente, indique nombre del contratista y la cantidad de personal proporcionado por su contratista."]
[null,"Nombre de la Empresa Contratista","N.° de personal","Descripción del proceso contratado externamente"]
[null,"DESCRIBA ...","DESCRIBA ...","DESCRIBA ...","DESCRIBA ...","DESCRIBA ...","DESCRIBA ...","DESCRIBA ...","DESCRIBA ..."]
[null,"DESCRIBA ...","DESCRIBA ...","DESCRIBA ...","DESCRIBA ...","DESCRIBA ...","DESCRIBA ...","DESCRIBA ...","DESCRIBA ..."]
[null,"DESCRIBA ...","DESCRIBA ...","DESCRIBA ...","DESCRIBA ...","DESCRIBA ...","DESCRIBA ...","DESCRIBA ...","DESCRIBA ..."]
[]
[null,"Nota: Sírvase adjuntar el MAPA DE PROCESOS a la presentación de este cuestionario"]
[]
[6,"INFORMACIÓN GENERAL"]
[]
[6.1,"Factores que influyen en el proceso de certificación de la organización"]
[null,"Por favor responda SI o NO, según corresponda a las caracteristicas de su organización frente a cada uno de los siguientes ITEMS",null,null,null,null,null,"Seleccione SI o NO"]
[null,null,null,null,null,null,null,"ISO 9001 - ISO 37001","ISO 14001","ISO 45001"]
[null,"a) Logística complicada (que involucren más de una ubicación donde se lleve a cabo el trabajo)",null,null,null,null,null,"Sin responder","Sin responder","Sin responder"]
[null,"b) Idioma (en caso de que se requiera intérprete)",null,null,null,null,null,"Sin responder","Sin responder","Sin responder"]
[null,"c) Sitio muy grande para el número de personal (ejem: un bosque, campo, entre otros)",null,null,null,null,null,"Sin responder","Sin responder","Sin responder"]
[null,"d) Alto grado de regulaciones",null,null,null,null,null,"Sin responder","Sin responder","Sin responder"]
[null,"e) Procesos complejos o un número alto de actividades únicas.",null,null,null,null,null,"Sin responder","Sin responder","Sin responder"]
[null,"f) Actividades que requieren visitar instalaciones temporales. (sitios que formen parte del alcance de certificación)",null,null,null,null,null,"Sin responder","Sin responder","Sin responder"]
[null,"g) Procesos o funciones subcontratados. ",null,null,null,null,null,"Sin responder","Sin responder","NA"]
[null,"h) Instalaciones muy pequeñas para el número de personal",null,null,null,null,null,"Sin responder","Sin responder","Sin responder"]
[null,"i) Madurez del sistema de gestión (considerar un SG maduro: mayor a 9 meses implementado)",null,null,null,null,null,"Sin responder","Sin responder","Sin responder"]
[null,"j) Ha sido anteriormente certificado por ICOCERT, para el caso de SST considere de existir alguna otra certificación voluntaria.",null,null,null,null,null,"Sin responder","Sin responder","Sin responder"]
[null,"Detalle:__________________________________________________________________________________________________________"]
[null,"k) Ha sido anteriormente certificado por otro esquema de terceros",null,null,null,null,null,"Sin responder","Sin responder","Sin responder"]
[null,"Detalle:__________________________________________________________________________________________________________"]
[null,"l) Alto nivel de automatización",null,null,null,null,null,"Sin responder","Sin responder","NA"]
[null,"m) Cuenta con personas que laboren  “fuera de las instalaciones”.",null,null,null,null,null,"Sin responder","Sin responder","Sin responder"]
[null,"n) La organización o los representantes se encuentran o han estado involucrados en algún proceso de investigación de actos de soborno / cohecho",null,null,null,null,null,"Sin responder","NA","NA"]
[]
[6.2,"Completar solo si solicita Certificar ISO 14001, Sistemas de Gestión del Medio Ambiente"]
[null,"Por favor responda SI o NO, según corresponda a las caracteristicas de su organización frente a cada uno de los siguientes ITEMS",null,null,null,null,null,"Seleccione SI o NO"]
[null,"ñ) La organización ha recibido opiniones de las partes interesadas",null,null,null,null,null,"Sin responder"]
[null,"o) La organización ha identificado aspectos ambientales indirectos significativos, propio de sus operaciones"]
[null,"p) La sede de sus operaciones se encuentra en una zona átipica, a la del sector",null,null,null,null,null,"Sin responder"]
[]
[null,"Detalle:__________________________________________________________________________________________________________"]
[null,"q) Aspectos ambientales o condiciones reguladas adicionales o inusuales para el sector",null,null,null,null,null,"Sin responder"]
[null,"r) Riesgos de accidentes e impactos ambientales que surjan o puedan surgir como consecuencia de incidentes, accidentes y posibles situaciones de emergencia, problemas ambientales previos a los que la organización haya contribuido.",null,null,null,null,null,"Sin responder"]
[]
[6.3,"Completar solo si solicita Certificar ISO 45001 Sistemas de Gestión de la Seguridad y Salud en el Trabajo"]
[null,"Por favor responda SI o NO, según corresponda a las caracteristicas de su organización frente a cada uno de los siguientes ITEMS",null,null,null,null,null,"Seleccione SI o NO"]
[null,"q) Tasa de accidentes y enfermedades profesionales superior a la media del sector empresarial",null,null,null,null,null,"Sin responder"]
[null,"r) La organización ha recibido opiniones de las partes interesadas",null,null,null,null,null,"Sin responder"]
[null,"Detalle:__________________________________________________________________________________________________________"]
[null,"s) Dentro de las instalaciones, se encuentra público presente (personal ajeno a las operaciones de la empresa, ejem: hospitales, aeropuertos, empresas de servicio, etc)"]
[null,"t) La organización está enfrentando un procedimiento legal relacionado a la SST (dependiendo de la severidad y el impacto del riesgo involucrado).",null,null,null,null,null,"Sin responder"]
[null,"u) La gran presencia temporal de muchas empresas de (sub)contratistas y sus empleados, lo que provoca un aumento de la complejidad o de los riesgos de SST (por ejemplo, cierres periódicos o cambios en las refinerías, plantas químicas, plantas de fabricación de acero y otros grandes complejos industriales.),",null,null,null,null,null,"Sin responder"]
[null,"v) Almacenan o contienen sustancias peligrosas en cantidades que expongan a una planta o fábrica; a un riesgo de accidente industrial mayor.",null,null,null,null,null,"Sin responder"]
[null,"w) Cuenta con Certificación en SST (otra certificación reglamentaria o necesaria. Ejem: Auditoría Sunafil, auditoría MINTRA, entre otros.",null,null,null,null,null,"Sin responder"]
[null,"y). Organización con sitios incluidos en el alcance en otros países aparte del país de origen (si la legislación y el idioma no son bien conocidos).",null,null,null,null,null,"Sin responder"]
[]
[]
[]
["6,4","Factores de nivel de integración"]
[null,"Por favor responda SI o NO, según corresponda a las caracteristicas de su organización frente a cada uno de los siguientes ITEMS",null,null,null,null,null,"Seleccione SI o NO"]
[null,"ñ) Un conjunto integrado de documentación, incluyendo sus instructivos de trabajo, desarrollados a un buen nivel, según proceda",null,null,null,null,null,"Sin responder"]
[null,"o)  Revisión de la gestión, que tengan en cuenta la estrategia global de negocio y su plan",null,null,null,null,null,"Sin responder"]
[null,"p) Un enfoque integrado de las auditorías interna",null,null,null,null,null,"Sin responder"]
[null,"q) Un enfoque integrado de la política y los objetivos",null,null,null,null,null,"Sin responder"]
[null,"r) Un enfoque integrado de los procesos de los sistemas",null,null,null,null,null,"Sin responder"]
[null,"s) Un enfoque integrado de mecanismos de mejora, (acción correctiva y preventiva, la medición y la mejora continua)",null,null,null,null,null,"Sin responder"]
[null,"t)  Apoyo a la gestión integrada y responsabilidades",null,null,null,null,null,"Sin responder"]
[null,"v) El cliente no es \"Responsable del diseño\" o de otros elementos de la norma que no esten cubiertos en el alcance (solo SGC)",null,null,null,null,null,"Sin responder","(Indique quien es el responsable del diseño o de otros elementos"]
[null,"Detallar:________________________________________________________________________________________________________",null,null,null,null,null,null,"no cubiertos en el aclance)"]
[]
[]
[6.5,"¿Cómo se enteró de los servicios de INTERNATIONAL CERTIFICATION ORGANIZATION S.A.C?:",null,null,null,null,"Sin responder",null,"Otro:"]
[]
[null,null,"Documento",null,"Sí/No","Persona de Contacto",null,"N.° Telf/Cel","e-mail"]
[null,null,"Orden de compra",null,"Texto del cliente (si aplica)","Texto del cliente (si aplica)",null,"Texto del cliente (si aplica)","Texto del cliente (si aplica)"]
[null,null,"Orden de Servicio",null,"Texto del cliente (si aplica)","Texto del cliente (si aplica)",null,"Texto del cliente (si aplica)","Texto del cliente (si aplica)"]
[null,null,"Hoja de entrada de servicio",null,"Texto del cliente (si aplica)","Texto del cliente (si aplica)",null,"Texto del cliente (si aplica)","Texto del cliente (si aplica)"]
[null,null,"Registro de Conformidad",null,"Texto del cliente (si aplica)","Texto del cliente (si aplica)",null,"Texto del cliente (si aplica)","Texto del cliente (si aplica)"]
[null,null,"Otro 1",null,"Texto del cliente (si aplica)","Texto del cliente (si aplica)",null,"Texto del cliente (si aplica)","Texto del cliente (si aplica)"]
[]
[null,"* Nota: En caso de que se necesite algún documento adicional, tenga la amabilidad de especificarlo, por ejemplo, la hoja de valoración, etc "]
[]
[6.6,"REQUISITOS APLICABLES SOLO PARA LA TRANSFERENCIA DE LA CERTIFICACIÓN (Llenar solo si aplica)"]
[null,"Remitir los siguientes documentos y completar según corresponda"]
["*","Informe de la última auditoría de Certificación",null,null,"_ _ _ _ _ _ _ _ _",null,"*","Planes de acción y estado de no conformidades",null,null,null,"_ _ _ _ _ _ _ _ _"]
["*","Copia del certificado del Organismo de Certificación vigente",null,null,"_ _ _ _ _ _ _ _ _",null,"*","Quejas y acciones correctas (de presentarse)",null,null,null,"_ _ _ _ _ _ _ _ _"]
["*","Indique el motivo de la Transferencia",null,null,"_ _ _ _ _ _ _ _ _",null,null,"Autorizo a ICO a que en el nombre de mi representada solicité toda información requerida para inciar el proceso de transferencia con mi certificadora actual",null,null,null,"_ _ _ _ _ _ _ _ _"]
[]
[null,"REDACTE SUS MOTIVOS*","Texto del cliente (si aplica)"]
[]
["PARA USO DEL CLIENTE:\n En casos de transferencia, seguimientos, re-certificación y/o auditorias especiales"]
["a)","Fecha de expiración de la certificación existente",null,null,null," "]
["b)","Frecuencia actual de los seguimientos (Anual / Semestral):"]
["c)","¿Cuál es la fecha de su última auditoría de certificación?",null,null,null," "]
["d)","¿Tiene no conformidades mayores en su última auditoría? "]
["e)","¿Tiene no conformidades menores en su última auditoría? "]
[]
[7,"PARA USO DEL CLIENTE"]
[]
[null,"Nombre:","_ _ _ _ _ _ _ _ _ _ _ _",null,null,null,null,"Cargo:","_ _ _ _ _ _ _ _ _ _ _ _"]
[]
[null,"Fecha del formulario","_ _ _ _ _ _ _ _ _ _ _ _",null,null,null,null,"Firma:"]
[]
[null,"Fecha requerida para el servicio:","_ _ _ _ _ _ _ _ _ _ _ _"]
[]
["REVISIÓN DE LA SOLICITUD (PARA USO EXCLUSIVO DE INTERNATIONAL CERTIFICATION ORGANIZATION S.A.C.)"]
[]
["a)","Alcance/Código de Evaluación IAF:"]
["b)","Alcance/Código NACE:"]
[]
["c)","Aplicabilidad de muestreo multisitio: (solo si aplica)"]
["d)","Revisión de la Transferencia: (solo si aplica)"]
["e)","Estado de la solicitud"]
["f)","Revisado por"]
["g)","Fecha"]
["h)","Registro de cliente"]
[null,"IMPORTANTE: La información brindada en el presente Formulario, tiene carácter de Declaración; el declarante en representación de la organización, asegura la veracidad y exactitud de todos los datos e información presentados en el documento."]

{"sheet":"N.° trabajadores en cada sitio","index":2,"n_rows":142,"n_cols":16,"rows_kept":142,"cut":false,"hidden":false,"merged":[[58,6,59,6],[58,14,59,14],[141,9,141,14],[72,1,72,6],[110,4,110,5],[58,3,59,3],[75,3,76,3],[92,3,93,3],[110,3,111,3],[58,1,59,1],[127,6,128,6],[127,14,128,14],[75,1,76,1],[92,1,93,1],[110,1,111,1],[58,7,59,7],[127,15,128,15],[106,9,106,14],[110,9,111,9],[110,11,111,11],[110,12,110,13],[110,15,111,15],[110,14,111,14],[92,15,93,15],[72,9,72,14],[75,9,76,9],[75,11,76,11],[75,12,75,13],[75,15,76,15],[75,14,76,14],[92,14,93,14],[124,9,124,14],[127,9,128,9],[127,11,128,11],[127,12,127,13],[89,9,89,14],[92,9,93,9],[92,11,93,11],[92,12,92,13],[58,15,59,15],[38,9,38,14],[41,9,42,9],[41,11,42,11],[41,12,41,13],[41,15,42,15],[24,9,25,9],[24,11,25,11],[24,12,24,13],[24,15,25,15],[55,9,55,14],[58,9,59,9],[58,11,59,11],[58,12,58,13],[24,14,25,14],[41,14,42,14],[0,15,1,15],[6,9,7,9],[6,11,7,11],[6,12,6,13],[6,14,7,14],[6,15,7,15],[127,7,128,7],[141,1,141,6],[75,4,75,5],[75,7,76,7],[89,1,89,6],[92,4,92,5],[92,7,93,7],[106,1,106,6],[110,7,111,7],[127,3,128,3],[124,1,124,6],[127,4,127,5],[127,1,128,1],[75,6,76,6],[92,6,93,6],[110,6,111,6],[55,1,55,6],[58,4,58,5],[6,7,7,7],[0,0,2,1],[24,7,25,7],[38,1,38,6],[41,3,42,3],[41,4,41,5],[41,7,42,7],[6,1,7,1],[24,1,25,1],[41,1,42,1],[6,3,7,3],[6,4,6,5],[20,1,20,6],[24,3,25,3],[24,4,24,5],[6,6,7,6],[0,2,1,13],[2,2,2,13],[20,9,20,14],[0,14,1,14],[21,1,21,7],[24,6,25,6],[41,6,42,6]]}
[null,null,"SISTEMA DE GESTIÓN",null,null,null,null,null,null,null,null,null,null,null,"Código del documento:","ICO-FO-04"]
[]
[null,null,"Formato de aplicación ",null,null,null,null,null,null,null,null,null,null,null,"Versión:",8]
[]
[null,null,null,null,null,null,null,"Regresar al resumen de sitio (s)",null,null,null,null,null,null,null,"Regresar al resumen de sitio (s)"]
[null,"SITIO PERMANENTE N°1",null,null,null,null,null,null,null,"SEDE TEMPORAL N°1"]
[null,"Nombre de los procesos de la empresa","Tipo de proceso","CANTIDAD DE TURNOS","CANTIDAD DE TRABAJADORES",null,"¿Este personal ejecuta Actividades Repetitivas?","Cant. Trabajadores total",null,"Nombre de los procesos de la empresa","Tipo de proceso","CANTIDAD DE TURNOS","CANTIDAD DE TRABAJADORES",null,"¿Este personal ejecuta Actividades Repetitivas?","Cant. Trabajadores total"]
[null,null,"Administrativo\nOperativo",null,"Cantidad de trabajadores a tiempo completo\n","Cantidad de trabajadores a medio tiempo completo \n(si aplica)",null,null,null,null,"Administrativo\nOperativo",null,"Cantidad de trabajadores a tiempo completo\n","Cantidad de trabajadores a medio tiempo completo \n(si aplica)"]
[null,null,null,null,null,null,null,{"$f":"(D9*E9)+(D9*F9/2)","v":0},null,null,null,null,null,null,null,{"$f":"(L9*M9)+(L9*N9/2)","v":0}]
[null,null,null,null,null,null,null,0,null,null,null,null,null,null,null,0]
[null,null,null,null,null,null,null,0,null,null,null,null,null,null,null,0]
[null,null,null,null,null,null,null,0,null,null,null,null,null,null,null,0]
[null,null,null,null,null,null,null,0,null,null,null,null,null,null,null,0]
[null,null,null,null,null,null,null,0,null,null,null,null,null,null,null,{"$f":"(L14*M14)+(L14*N14/2)","v":0}]
[null,null,null,null,null,null,null,0,null,null,null,null,null,null,null,0]
[null,null,null,null,null,null,null,0,null,null,null,null,null,null,null,0]
[null,null,null,null,null,null,null,0,null,null,null,null,null,null,null,0]
[null,null,null,null,null,null,null,0,null,null,null,null,null,null,null,0]
[null,null,null,null,null,null,null,0,null,null,null,null,null,null,null,0]
[null,null,null,null,null,null,null,0,null,null,null,null,null,null,null,0]
[null,"TOTAL",null,null,null,null,null,{"$f":"SUM(H9:H20)","v":0},null,"TOTAL",null,null,null,null,null,{"$f":"SUM(P9:P20)","v":0}]
[null,"Nota: Los procesos declarados deben estar incluidos dentro del alcance de certificación de su sistema de gestión.\nEjemplo: Alta dirección, Recursos Humanos, Logística, Finanzas, Licitaciones, SGAS, entre otros aplicables a la organización. "]
[]
[null,"SITIO PERMANENTE N°2",null,null,null,null,null,null,null,"SEDE TEMPORAL N°2"]
[null,"Nombre de los procesos de la empresa","Tipo de proceso","CANTIDAD DE TURNOS","CANTIDAD DE TRABAJADORES",null,"¿Este personal ejecuta Actividades Repetitivas?","Cant. Trabajadores total",null,"Nombre de los procesos de la empresa","Tipo de proceso","CANTIDAD DE TURNOS","CANTIDAD DE TRABAJADORES",null,"¿Este personal ejecuta Actividades Repetitivas?","Cant. Trabajadores total"]
[null,null,"Administrativo\nOperativo",null,"Cantidad de trabajadores a tiempo completo\n","Cantidad de trabajadores a medio tiempo completo \n(si aplica)",null,null,null,null,"Administrativo\nOperativo",null,"Cantidad de trabajadores a tiempo completo\n","Cantidad de trabajadores a medio tiempo completo \n(si aplica)"]
[null,null,null,null,null,null,null,{"$f":"(D27*E27)+(D27*F27/2)","v":0},null,null,null,null,null,null,null,{"$f":"(L27*M27)+(L27*N27/2)","v":0}]
[null,null,null,null,null,null,null,0,null,null,null,null,null,null,null,0]
[null,null,null,null,null,null,null,0,null,null,null,null,null,null,null,0]
[null,null,null,null,null,null,null,0,null,null,null,null,null,null,null,0]
[null,null,null,null,null,null,null,0,null,null,null,null,null,null,null,0]
[null,null,null,null,null,null,null,0,null,null,null,null,null,null,null,0]
[null,null,null,null,null,null,null,0,null,null,null,null,null,null,null,0]
[null,null,null,null,null,null,null,0,null,null,null,null,null,null,null,0]
[null,null,null,null,null,null,null,0,null,null,null,null,null,null,null,0]
[null,null,null,null,null,null,null,0,null,null,null,null,null,null,null,0]
[null,null,null,null,null,null,null,0,null,null,null,null,null,null,null,0]
[null,null,null,null,null,null,null,0,null,null,null,null,null,null,null,0]
[null,"TOTAL",null,null,null,null,null,{"$f":"SUM(H27:H38)","v":0},null,"TOTAL",null,null,null,null,null,{"$f":"SUM(P27:P38)","v":0}]
[]
[null,"SITIO PERMANENTE N°3",null,null,null,null,null,null,null,"SEDE TEMPORAL N°3"]
[null,"Nombre de los procesos de la empresa","Tipo de proceso","CANTIDAD DE TURNOS","CANTIDAD DE TRABAJADORES",null,"¿Este personal ejecuta Actividades Repetitivas?","Cant. Trabajadores total",null,"Nombre de los procesos de la empresa","Tipo de proceso","CANTIDAD DE TURNOS","CANTIDAD DE TRABAJADORES",null,"¿Este personal ejecuta Actividades Repetitivas?","Cant. Trabajadores total"]
[null,null,"Administrativo\nOperativo",null,"Cantidad de trabajadores a tiempo completo\n","Cantidad de trabajadores a medio tiempo completo \n(si aplica)",null,null,null,null,"Administrativo\nOperativo",null,"Cantidad de trabajadores a tiempo completo\n","Cantidad de trabajadores a medio tiempo completo \n(si aplica)"]
[null,null,null,null,null,null,null,{"$f":"(D44*E44)+(D44*F44/2)","v":0},null,null,null,null,null,null,null,{"$f":"(L44*M44)+(L44*N44/2)","v":0}]
[null,null,null,null,null,null,null,0,null,null,null,null,null,null,null,0]
[null,null,null,null,null,null,null,0,null,null,null,null,null,null,null,0]
[null,null,null,null,null,null,null,0,null,null,null,null,null,null,null,0]
[null,null,null,null,null,null,null,0,null,null,null,null,null,null,null,0]
[null,null,null,null,null,null,null,0,null,null,null,null,null,null,null,0]
[null,null,null,null,null,null,null,0,null,null,null,null,null,null,null,0]
[null,null,null,null,null,null,null,0,null,null,null,null,null,null,null,0]
[null,null,null,null,null,null,null,0,null,null,null,null,null,null,null,0]
[null,null,null,null,null,null,null,0,null,null,null,null,null,null,null,0]
[null,null,null,null,null,null,null,0,null,null,null,null,null,null,null,0]
[null,null,null,null,null,null,null,0,null,null,null,null,null,null,null,0]
[null,"TOTAL",null,null,null,null,null,{"$f":"SUM(H44:H55)","v":0},null,"TOTAL",null,null,null,null,null,{"$f":"SUM(P44:P55)","v":0}]
[]
[null,"SITIO PERMANENTE N°4",null,null,null,null,null,null,null,"SEDE TEMPORAL N°4"]
[null,"Nombre de los procesos de la empresa","Tipo de proceso","CANTIDAD DE TURNOS","CANTIDAD DE TRABAJADORES",null,"¿Este personal ejecuta Actividades Repetitivas?","Cant. Trabajadores total",null,"Nombre de los procesos de la empresa","Tipo de proceso","CANTIDAD DE TURNOS","CANTIDAD DE TRABAJADORES",null,"¿Este personal ejecuta Actividades Repetitivas?","Cant. Trabajadores total"]
[null,null,"Administrativo\nOperativo",null,"Cantidad de trabajadores a tiempo completo\n","Cantidad de trabajadores a medio tiempo completo \n(si aplica)",null,null,null,null,"Administrativo\nOperativo",null,"Cantidad de trabajadores a tiempo completo\n","Cantidad de trabajadores a medio tiempo completo \n(si aplica)"]
[null,null,null,null,null,null,null,{"$f":"(D61*E61)+(D61*F61/2)","v":0},null,null,null,null,null,null,null,{"$f":"(L61*M61)+(L61*N61/2)","v":0}]
[null,null,null,null,null,null,null,0,null,null,null,null,null,null,null,0]
[null,null,null,null,null,null,null,0,null,null,null,null,null,null,null,0]
[null,null,null,null,null,null,null,0,null,null,null,null,null,null,null,0]
[null,null,null,null,null,null,null,0,null,null,null,null,null,null,null,0]
[null,null,null,null,null,null,null,0,null,null,null,null,null,null,null,0]
[null,null,null,null,null,null,null,0,null,null,null,null,null,null,null,0]
[null,null,null,null,null,null,null,0,null,null,null,null,null,null,null,0]
[null,null,null,null,null,null,null,0,null,null,null,null,null,null,null,0]
[null,null,null,null,null,null,null,0,null,null,null,null,null,null,null,0]
[null,null,null,null,null,null,null,0,null,null,null,null,null,null,null,0]
[null,null,null,null,null,null,null,0,null,null,null,null,null,null,null,0]
[null,"TOTAL",null,null,null,null,null,{"$f":"SUM(H61:H72)","v":0},null,"TOTAL",null,null,null,null,null,{"$f":"SUM(P61:P72)","v":0}]
[]
[null,"SITIO PERMANENTE N°5",null,null,null,null,null,null,null,"SEDE TEMPORAL N°5"]
[null,"Nombre de los procesos de la empresa","Tipo de proceso","CANTIDAD DE TURNOS","CANTIDAD DE TRABAJADORES",null,"¿Este personal ejecuta Actividades Repetitivas?","Cant. Trabajadores total",null,"Nombre de los procesos de la empresa","Tipo de proceso","CANTIDAD DE TURNOS","CANTIDAD DE TRABAJADORES",null,"¿Este personal ejecuta Actividades Repetitivas?","Cant. Trabajadores total"]
[null,null,"Administrativo\nOperativo",null,"Cantidad de trabajadores a tiempo completo\n","Cantidad de trabajadores a medio tiempo completo \n(si aplica)",null,null,null,null,"Administrativo\nOperativo",null,"Cantidad de trabajadores a tiempo completo\n","Cantidad de trabajadores a medio tiempo completo \n(si aplica)"]
[null,null,null,null,null,null,null,{"$f":"(D78*E78)+(D78*F78/2)","v":0},null,null,null,null,null,null,null,{"$f":"(L78*M78)+(L78*N78/2)","v":0}]
[null,null,null,null,null,null,null,0,null,null,null,null,null,null,null,0]
[null,null,null,null,null,null,null,0,null,null,null,null,null,null,null,0]
[null,null,null,null,null,null,null,0,null,null,null,null,null,null,null,0]
[null,null,null,null,null,null,null,0,null,null,null,null,null,null,null,0]
[null,null,null,null,null,null,null,0,null,null,null,null,null,null,null,0]
[null,null,null,null,null,null,null,0,null,null,null,null,null,null,null,0]
[null,null,null,null,null,null,null,0,null,null,null,null,null,null,null,0]
[null,null,null,null,null,null,null,0,null,null,null,null,null,null,null,0]
[null,null,null,null,null,null,null,0,null,null,null,null,null,null,null,0]
[null,null,null,null,null,null,null,0,null,null,null,null,null,null,null,0]
[null,null,null,null,null,null,null,0,null,null,null,null,null,null,null,0]
[null,"TOTAL",null,null,null,null,null,{"$f":"SUM(H78:H89)","v":0},null,"TOTAL",null,null,null,null,null,{"$f":"SUM(P78:P89)","v":0}]
[]
[null,"SITIO PERMANENTE N°6",null,null,null,null,null,null,null,"SEDE TEMPORAL N°6"]
[null,"Nombre de los procesos de la empresa","Tipo de proceso","CANTIDAD DE TURNOS","CANTIDAD DE TRABAJADORES",null,"¿Este personal ejecuta Actividades Repetitivas?","Cant. Trabajadores total",null,"Nombre de los procesos de la empresa","Tipo de proceso","CANTIDAD DE TURNOS","CANTIDAD DE TRABAJADORES",null,"¿Este personal ejecuta Actividades Repetitivas?","Cant. Trabajadores total"]
[null,null,"Administrativo\nOperativo",null,"Cantidad de trabajadores a tiempo completo\n","Cantidad de trabajadores a medio tiempo completo \n(si aplica)",null,null,null,null,"Administrativo\nOperativo",null,"Cantidad de trabajadores a tiempo completo\n","Cantidad de trabajadores a medio tiempo completo \n(si aplica)"]
[null,null,null,null,null,null,null,{"$f":"(D95*E95)+(D95*F95/2)","v":0},null,null,null,null,null,null,null,{"$f":"(L95*M95)+(L95*N95/2)","v":0}]
[null,null,null,null,null,null,null,0,null,null,null,null,null,null,null,0]
[null,null,null,null,null,null,null,0,null,null,null,null,null,null,null,0]
[null,null,null,null,null,null,null,0,null,null,null,null,null,null,null,0]
[null,null,null,null,null,null,null,0,null,null,null,null,null,null,null,0]
[null,null,null,null,null,null,null,0,null,null,null,null,null,null,null,0]
[null,null,null,null,null,null,null,0,null,null,null,null,null,null,null,0]
[null,null,null,null,null,null,null,0,null,null,null,null,null,null,null,0]
[null,null,null,null,null,null,null,0,null,null,null,null,null,null,null,0]
[null,null,null,null,null,null,null,0,null,null,null,null,null,null,null,0]
[null,null,null,null,null,null,null,0,null,null,null,null,null,null,null,0]
[null,null,null,null,null,null,null,0,null,null,null,null,null,null,null,0]
[null,"TOTAL",null,null,null,null,null,{"$f":"SUM(H95:H106)","v":0},null,"TOTAL",null,null,null,null,null,{"$f":"SUM(P95:P106)","v":0}]
[]
[]
[null,"SITIO PERMANENTE N°7",null,null,null,null,null,null,null,"SEDE TEMPORAL N°7"]
[null,"Nombre de los procesos de la empresa","Tipo de proceso","CANTIDAD DE TURNOS","CANTIDAD DE TRABAJADORES",null,"¿Este personal ejecuta Actividades Repetitivas?","Cant. Trabajadores total",null,"Nombre de los procesos de la empresa","Tipo de proceso","CANTIDAD DE TURNOS","CANTIDAD DE TRABAJADORES",null,"¿Este personal ejecuta Actividades Repetitivas?","Cant. Trabajadores total"]
[null,null,"Administrativo\nOperativo",null,"Cantidad de trabajadores a tiempo completo\n","Cantidad de trabajadores a medio tiempo completo \n(si aplica)",null,null,null,null,"Administrativo\nOperativo",null,"Cantidad de trabajadores a tiempo completo\n","Cantidad de trabajadores a medio tiempo completo \n(si aplica)"]
[null,null,null,null,null,null,null,{"$f":"(D113*E113)+(D113*F113/2)","v":0},null,null,null,null,null,null,null,{"$f":"(L113*M113)+(L113*N113/2)","v":0}]
[null,null,null,null,null,null,null,0,null,null,null,null,null,null,null,0]
[null,null,null,null,null,null,null,0,null,null,null,null,null,null,null,0]
[null,null,null,null,null,null,null,0,null,null,null,null,null,null,null,0]
[null,null,null,null,null,null,null,0,null,null,null,null,null,null,null,0]
[null,null,null,null,null,null,null,0,null,null,null,null,null,null,null,0]
[null,null,null,null,null,null,null,0,null,null,null,null,null,null,null,0]
[null,null,null,null,null,null,null,0,null,null,null,null,null,null,null,0]
[null,null,null,null,null,null,null,0,null,null,null,null,null,null,null,0]
[null,null,null,null,null,null,null,0,null,null,null,null,null,null,null,0]
[null,null,null,null,null,null,null,0,null,null,null,null,null,null,null,0]
[null,null,null,null,null,null,null,0,null,null,null,null,null,null,null,0]
[null,"TOTAL",null,null,null,null,null,{"$f":"SUM(H113:H124)","v":0},null,"TOTAL",null,null,null,null,null,{"$f":"SUM(P113:P124)","v":0}]
[]
[null,"SITIO PERMANENTE N°8",null,null,null,null,null,null,null,"SEDE TEMPORAL N°8"]
[null,"Nombre de los procesos de la empresa","Tipo de proceso","CANTIDAD DE TURNOS","CANTIDAD DE TRABAJADORES",null,"¿Este personal ejecuta Actividades Repetitivas?","Cant. Trabajadores total",null,"Nombre de los procesos de la empresa","Tipo de proceso","CANTIDAD DE TURNOS","CANTIDAD DE TRABAJADORES",null,"¿Este personal ejecuta Actividades Repetitivas?","Cant. Trabajadores total"]
[null,null,"Administrativo\nOperativo",null,"Cantidad de trabajadores a tiempo completo\n","Cantidad de trabajadores a medio tiempo completo \n(si aplica)",null,null,null,null,"Administrativo\nOperativo",null,"Cantidad de trabajadores a tiempo completo\n","Cantidad de trabajadores a medio tiempo completo \n(si aplica)"]
[null,null,null,null,null,null,null,{"$f":"(D130*E130)+(D130*F130/2)","v":0},null,null,null,null,null,null,null,{"$f":"(L130*M130)+(L130*N130/2)","v":0}]
[null,null,null,null,null,null,null,0,null,null,null,null,null,null,null,0]
[null,null,null,null,null,null,null,0,null,null,null,null,null,null,null,0]
[null,null,null,null,null,null,null,0,null,null,null,null,null,null,null,0]
[null,null,null,null,null,null,null,0,null,null,null,null,null,null,null,0]
[null,null,null,null,null,null,null,0,null,null,null,null,null,null,null,0]
[null,null,null,null,null,null,null,0,null,null,null,null,null,null,null,0]
[null,null,null,null,null,null,null,0,null,null,null,null,null,null,null,0]
[null,null,null,null,null,null,null,0,null,null,null,null,null,null,null,0]
[null,null,null,null,null,null,null,0,null,null,null,null,null,null,null,0]
[null,null,null,null,null,null,null,0,null,null,null,null,null,null,null,0]
[null,null,null,null,null,null,null,0,null,null,null,null,null,null,null,0]
[null,"TOTAL",null,null,null,null,null,{"$f":"SUM(H130:H141)","v":0},null,"TOTAL",null,null,null,null,null,{"$f":"SUM(P130:P141)","v":0}]

{"sheet":"Req para audit remota","index":3,"n_rows":32,"n_cols":7,"rows_kept":32,"cut":false,"hidden":false,"merged":[[4,1,4,2],[4,5,4,6],[0,1,2,2],[0,3,0,4],[1,3,2,4],[1,5,2,5],[1,6,2,6],[20,1,23,1],[20,2,23,3],[20,4,23,4],[6,1,6,2],[6,5,6,6],[8,1,8,6],[10,1,10,6],[11,2,11,3],[12,1,15,1],[12,2,15,3],[12,4,15,4],[16,2,16,3],[17,2,17,3],[17,5,17,6],[18,2,18,3],[19,2,19,3],[28,2,28,3],[24,2,24,3],[24,5,24,6],[25,2,25,3],[25,5,25,6],[26,2,26,3],[26,5,26,6]]}
[null," ",null,"SISTEMA  DE GESTION ANTISOBORNO",null,"CÓDIGO","ICO-FO-097"]
[null,null,null,"Requerimientos para auditorías remotas",null,"VERSION","1"]
[]
[]
[null,"EMPRESA:",null,null,"FECHA:"]
[]
[null,"RESPONSABLE:",null,null,"CARGO:"]
[]
[null,"Estimado cliente, por favor sirvase a realizar la evaluación de acuerdo a la realidad de su organización. Tener en cuenta que toda información declarada queda bajo responsabilidad de la organización declarante, a fin de disponer con los recursos necesarios para la auditoría remota. "]
[]
[null,"REQUERIMIENTOS PARA LA EVALUACIÓN REMOTA"]
[null,"N°","Descripción",null,"SI/NO","Otros","SI/NO"]
[null,1,"Indique si dispone de dispositivos TIC para la evaluación remota. Si su respuesta es positiva Seleccione que herramienta de comunicación dispone y en caso cuenta con algún otro no indicado en la presente ficha, mencionelo.",null,null,"Zoom"]
[null,null,null,null,null,"Team"]
[null,null,null,null,null,"Skype"]
[null,null,null,null,null,"Otro?,Cuál?"]
[null,2,"¿Puede a través del TIC compartir la información en su pantalla y compartirla en cuanto se le solicite?",null,null,"¿Se compromete a cumplir con esta condición?"]
[null,3,"Dispone señal de Internet, con una velocidad mínima de 20 Mbps"]
[null,4,"Tiene la capacidad de mantener la cámara de video activo de las personas entrevistadas y de las que se encuentren conectadas  en la sesión durante la evaluación. ",null,null,"¿Se compromete a cumplir con esta condición?"]
[null,5,"Se  cuenta con TIC portátiles (smartphones, cámaras, etc) para poder transmitir audio y video en forma sincrónica, desde cualquier lugar dentro de la organización?  ",null,null,"La cámara cuenta con resolución de al menos 14 MP"]
[null,6,"¿Con qué tipo de dispositivo cuenta usted y su personal para participar de la auditoría remota? Puede Seleccionar una o más.",null,null,"Computadora"]
[null,null,null,null,null,"Laptop"]
[null,null,null,null,null,"Celular"]
[null,null,null,null,null,"Otro?,Cuál?"]
[null,7,"Si en caso realiza el uso de smartphones o cámaras, se dispone de accesorios para mantener estable la imagen (tripodes)"]
[null,8,"¿Todos los dispositivos a usar durante la auditoría remota cuentan con cargadores portátiles?"]
[null,9,"¿Cuenta con disponibilidad del personal que formará parte de la evaluación para conectarse en forma sincrónica durante la auditoría remota?"]
[]
[null,10,"¿ESTÁ DE ACUERDO CON PROCEDER LA AUDITORIA REMOTA? "]
[]
[]
[null,null,null,"FIRMA"]

{"sheet":"RIESGO_SGAS","index":4,"n_rows":140,"n_cols":6,"rows_kept":140,"cut":false,"hidden":true,"merged":[]}
[null,null,"SISTEMA DE GESTIÓN"]
[]
[null,"IAF No.","Descripción","Descripción","NACE – División / Grupo / Clase (rev.2)","Nivel de riesgo"]
[null,1,"_01_Agricultura_pesca","_01_Agricultura_pesca","01 Agricultura, ganadería, caza y servicios relacionados con las mismas","Alto"]
[null,2,"_02_Minería_e_industrias_extractivas","_01_Agricultura_pesca","02 Silvicultura y explotación forestal","Alto"]
[null,3,"_03_Productos_alimenticios_bebidas_y_tabaco","_01_Agricultura_pesca","03 Pesca y acuicultura","Alto"]
[null,4,"_04_Industria textil_y_confección ","_02_Minería_e_industrias_extractivas","05 Extracción de antracita, hulla y lignito","Alto"]
[null,5,"_05_Cuero_y_productos_de_Cuero","_02_Minería_e_industrias_extractivas","06 Extracción de crudo de petróleo y gas natural","Alto"]
[null,6,"_06_Madera_y_productos_de_madera","_02_Minería_e_industrias_extractivas","07 Extracción de minerales metálicos","Alto"]
[null,7,"_07_Pasta_papelera_papel_y_productos_de_papel","_02_Minería_e_industrias_extractivas","08 Otras Industrias Extractivas","Alto"]
[null,8,"_08_Edición_Compañías_editoriales","_02_Minería_e_industrias_extractivas","09 Actividades de apoyo a las industrias extractivas","Alto"]
[null,9,"_09_Compañías_de_impresión","_03_Productos_alimenticios_bebidas_y_tabaco","10 Industria de la alimentación","Alto"]
[null,10,"_10_Coquerías_y_productos_refinados_de_petróleo","_03_Productos_alimenticios_bebidas_y_tabaco","11 Fabricación de bebidas","Alto"]
[null,11,"_11_Combustible_nuclear","_03_Productos_alimenticios_bebidas_y_tabaco","12 Industria del tabaco","Alto"]
[null,12,"_12_Productos_químicos_y_fibras","_04_Industria_textil_y_confeccion","13 Industria textil","Bajo"]
[null,13,"_13_Farmacéuticos","_04_Industria_textil_y_confeccion","14 Confección de prendas de vestir","Bajo"]
[null,14,"_14_Productos_de_caucho_y_materias_plásticas","_05_Cuero_y_productos_de_Cuero","15 Industria del cuero y del calzado","Bajo"]
[null,15,"_15_Productos_minerales_no_metálicos","_06_Madera_y_productos_de_madera","16 Industria de la madera y del corcho, excepto muebles; cestería y espartería","Bajo"]
[null,16,"_16_Hormigón_cemento_cal_yeso_etc","_07_Pasta_papelera_papel_y_productos_de_papel","17 Industria del papel","Bajo"]
[null,17,"_17_Metales_de_base_y_productos_metálicos_manufacturados","_08_Edición_Compañías_editoriales","58.1 Edición de libros, periódicos y otras actividades editoriales","Bajo"]
[null,18,"_18_Máquinaria_y_equipo_industrial","_08_Edición_Compañías_editoriales","59.2 Actividades de grabación de sonido y edición musical.\t ","Bajo"]
[null,19,"_19_Equipo_eléctrico_y_óptico","_09_Compañías_de_impresión","18 Artes gráficas y reproducción de soportes grabados.","Bajo"]
[null,20,"_20_Construcción_naval","_10_Coquerías_y_productos_refinados_de_petróleo","19 Coquerías y refino de petróleo.\t  ","Alto"]
[null,21,"_21_Aeronáutica ","_11_Combustible_nuclear","24.46 Procesamiento de combustibles nucleares.","Alto"]
[null,22,"_22_Otro_equipo_de_transporte","_12_Productos_químicos_y_fibras","20 Industria química.","Alto"]
[null,23,"_23_Otras_industrias_manufactureras_no_clasificadas","_13_Farmacéuticos","21 Fabricación de productos farmacéuticos.","Alto"]
[null,24,"_24_Reciclaje","_14_Productos_de_caucho_y_materias_plásticas","22 Fabricación de productos de caucho y plásticos.\t","Alto"]
[null,25,"_25_Suministro_de_electricidad","_15_Productos_minerales_no_metálicos","23 Fabricación de otros productos minerales no metálicos","Medio"]
[null,26,"_26_Suministro_de_gas","_15_Productos_minerales_no_metálicos ","23.1 Fabricación de vidrio y productos de vidrio","Medio"]
[null,27,"_27_Suministro_de_agua","_15_Productos_minerales_no_metálicos ","23.2 Fabricación de productos cerámicos refractarios","Medio"]
[null,28,"_28_Construcción","_15_Productos_minerales_no_metálicos ","23.3 Fabricación de productos cerámicos para la construcción","Medio"]
[null,29,"_29_Comercio_reparación_de_vehículos_de_motor_motocicletas_y_artículos_personales_y_de_uso_doméstico","_15_Productos_minerales_no_metálicos ","23.4 Fabricación de otros productos cerámicos","Medio"]
[null,30,"_30_Hoteles_y_restaurantes","_15_Productos_minerales_no_metálicos ","23.7 Corte, tallado y acabado de la piedra","Medio"]
[null,31,"_31_Transporte_almacenamiento_y_comunicaciones","_15_Productos_minerales_no_metálicos ","23.9 Fabricación de productos abrasivos y productos minerales no metálicos n.c.o.p.","Medio"]
[null,32,"_32_Intermediación_financiera_bienes raíces_ alquiler","_16_Hormigón_cemento_cal_yeso_etc","23.5 Fabricación de cemento, cal y yeso","Medio"]
[null,33,"_33_Tecnología_de_la_información","_16_Hormigón_cemento_cal_yeso_etc","23.6 Fabricación de elementos de hormigón, cemento y yeso.","Medio"]
[null,34,"_34_Servicios_de_ingeniería","_17_Metales_de_base_y_productos_metálicos_manufacturados","24 Metalurgia; fabricación de productos de hierro, acero y ferroaleaciones.","Medio"]
[null,35,"_35_Otros_servicios","_17_Metales_de_base_y_productos_metálicos_manufacturados","24.1 Fabricación de productos básicos de hierro, acero y ferroaleaciones","Medio"]
[null,36,"_36_Administración_pública","_17_Metales_de_base_y_productos_metálicos_manufacturados","24.2 Fabricación de tubos, tuberías, perfiles huecos y sus accesorios, de acero.","Medio"]
[null,37,"_37_Educación","_17_Metales_de_base_y_productos_metálicos_manufacturados","24.3 Fabricación de otros productos de primera transformación del acero.","Medio"]
[null,38,"_38_Salud_y_trabajo_social","_17_Metales_de_base_y_productos_metálicos_manufacturados","24.4 Producción de metales preciosos y de otros metales no férreos.","Medio"]
[null,39,"_39_Otras_actividades_sociales ","_17_Metales_de_base_y_productos_metálicos_manufacturados","24.41 Producción de metales preciosos.","Medio"]
[null,40,"_40_Dispositivos_médicos_productos_médicos","_17_Metales_de_base_y_productos_metálicos_manufacturados","24.42 Producción de aluminio.","Medio"]
[null,null,null,"_17_Metales_de_base_y_productos_metálicos_manufacturados","24.43 Producción de plomo, zinc y estaño.","Medio"]
[null,null,null,"_17_Metales_de_base_y_productos_metálicos_manufacturados","24.44 Producción de cobre.","Medio"]
[null,null,null,"_17_Metales_de_base_y_productos_metálicos_manufacturados","24.45 Producción de otros metales no férreos.","Medio"]
[null,null,null,"_17_Metales_de_base_y_productos_metálicos_manufacturados","24.5 Fundición de metales.","Medio"]
[null,null,null,"_17_Metales_de_base_y_productos_metálicos_manufacturados","25 Fabricación de productos metálicos, excepto maquinaria y equipo.","Medio"]
[null,null,null,"_17_Metales_de_base_y_productos_metálicos_manufacturados","25.1 Fabricación de elementos metálicos para la construcción.","Alto"]
[null,null,null,"_17_Metales_de_base_y_productos_metálicos_manufacturados","25.2 Fabricación de cisternas, grandes depósitos y contenedores de metal.","Medio"]
[null,null,null,"_17_Metales_de_base_y_productos_metálicos_manufacturados","25.3 Fabricación de generadores de vapor, excepto calderas para calefacción central.","Alto"]
[null,null,null,"_17_Metales_de_base_y_productos_metálicos_manufacturados","25.5 Forja, estampación y embutición de metales; metalurgia de polvos.","Medio"]
[null,null,null,"_17_Metales_de_base_y_productos_metálicos_manufacturados","25.6 Tratamiento y revestimiento de metales; ingeniería mecánica por cuenta de terceros.","Medio"]
[null,null,null,"_17_Metales_de_base_y_productos_metálicos_manufacturados","25.7 Fabricación de artículos de cuchillería y cubertería, herramientas y ferretería.","Medio"]
[null,null,null,"_17_Metales_de_base_y_productos_metálicos_manufacturados","25.9 Fabricación de otros productos metálicos.","Medio"]
[null,null,null,"_17_Metales_de_base_y_productos_metálicos_manufacturados","33.11 Reparación de productos metálicos.","Medio"]
[null,null,null,"_18_Máquinaria_y_equipo_industrial","25.4 Fabricación de armas y municiones.","Alto"]
[null,null,null,"_18_Máquinaria_y_equipo_industrial","28 Fabricación de maquinaria y equipo n.c.o.p.","Alto"]
[null,null,null,"_18_Máquinaria_y_equipo_industrial","30.4 Fabricación de vehículos militares de combate.","Alto"]
[null,null,null,"_18_Máquinaria_y_equipo_industrial","33.12 Reparación de maquinaria.","Alto"]
[null,null,null,"_18_Máquinaria_y_equipo_industrial","33.2 Instalación de máquinas y equipos industriales.","Alto"]
[null,null,null,"_19_Equipo_eléctrico_y_óptico","26 Fabricación de productos informáticos, electrónicos y ópticos.","Medio"]
[null,null,null,"_19_Equipo_eléctrico_y_óptico","27 Fabricación de material y equipo eléctrico.","Alto"]
[null,null,null,"_19_Equipo_eléctrico_y_óptico","33.13 Reparación de equipos electrónicos y ópticos.","Medio"]
[null,null,null,"_19_Equipo_eléctrico_y_óptico","33.14 Reparación de equipos eléctricos.","Alto"]
[null,null,null,"_19_Equipo_eléctrico_y_óptico","95.1 Reparación de ordenadores y equipos de comunicación.","Medio"]
[null,null,null,"_20_Construcción_naval","30.1 Construcción naval","Alto"]
[null,null,null,"_20_Construcción_naval","33.15 Reparación y mantenimiento naval.","alto"]
[null,null,null,"_21_Aeronáutica","30.3 Construcción aeronáutica y espacial y su maquinaria","Alto"]
[null,null,null,"_21_Aeronáutica","33.16 Reparación y mantenimiento aeronáutico y espacial.","Alto"]
[null,null,null,"_22_Otro_equipo_de_transporte","29 Fabricación de vehículos de motor, remolques y semirremolques","Alto"]
[null,null,null,"_22_Otro_equipo_de_transporte","30.2 Fabricación de locomotoras y material ferroviario.","Alto"]
[null,null,null,"_22_Otro_equipo_de_transporte","30.9 Fabricación de material de transporte n.c.o.p.","Alto"]
[null,null,null,"_22_Otro_equipo_de_transporte","33.17 Reparación y mantenimiento de otro material de transporte.","Alto"]
[null,null,null,"_23_Otras_industrias_manufactureras_no_clasificadas","31 Fabricación de muebles.","Medio"]
[null,null,null,"_23_Otras_industrias_manufactureras_no_clasificadas","32 Otras industrias manufactureras.","Medio"]
[null,null,null,"_23_Otras_industrias_manufactureras_no_clasificadas","33.19 Reparación de otros equipos","Medio"]
[null,null,null,"_24_Reciclaje","38.3 Valorización.","Alto"]
[null,null,null,"_25_Suministro_de_electricidad","35.1 Producción, transporte y distribución de energía eléctrica.","Alto"]
[null,null,null,"_26_Suministro_de_gas","35.2 Producción de gas; distribución por tubería de combustibles gaseosos.","Alto"]
[null,null,null,"_27_Suministro_de_agua","35.3 Suministro de vapor y aire acondicionado","Alto"]
[null,null,null,"_27_Suministro_de_agua","36 Captación, depuración y distribución de agua\t","Alto"]
[null,null,null,"_28_Construcción","41 Construcción de edificios","Alto"]
[null,null,null,"_28_Construcción","42 Ingeniería civil","Alto"]
[null,null,null,"_28_Construcción","43 Actividades de construcción especializada.","Alto"]
[null,null,null,"_29_Comercio_reparación_de_vehículos_de_motor_motocicletas_y_artículos_personales_y_de_uso_doméstico","45 Venta y reparación de vehículos de motor y motocicletas.","Bajo"]
[null,null,null,"_29_Comercio_reparación_de_vehículos_de_motor_motocicletas_y_artículos_personales_y_de_uso_doméstico","46 Comercio al por mayor e intermediarios del comercio, excepto de vehículos de motor y motocicletas.","medio"]
[null,null,null,"_29_Comercio_reparación_de_vehículos_de_motor_motocicletas_y_artículos_personales_y_de_uso_doméstico","47 Comercio al por menor, excepto de vehículos de motor y motocicletas.","Bajo"]
[null,null,null,"_29_Comercio_reparación_de_vehículos_de_motor_motocicletas_y_artículos_personales_y_de_uso_doméstico","95.2 Reparación de efectos personales y artículos de uso doméstico.","Medio"]
[null,null,null,"_30_Hoteles_y_restaurantes","55 Servicios de alojamiento","Bajo"]
[null,null,null,"_30_Hoteles_y_restaurantes","56 Servicios de comidas y bebidas.","Bajo"]
[null,null,null,"_31_Transporte_almacenamiento_y_comunicaciones","49 Transporte terrestre y por tubería","Bajo"]
[null,null,null,"_31_Transporte_almacenamiento_y_comunicaciones","50 Transporte marítimo y por vías navegables interiores.","Bajo"]
[null,null,null,"_31_Transporte_almacenamiento_y_comunicaciones","51 Transporte aéreo.","Bajo"]
[null,null,null,"_31_Transporte_almacenamiento_y_comunicaciones","52 Almacenamiento y actividades anexas al transporte.","Bajo"]
[null,null,null,"_31_Transporte_almacenamiento_y_comunicaciones","53 Almacenamiento y actividades anexas al transporte.","Bajo"]
[null,null,null,"_31_Transporte_almacenamiento_y_comunicaciones","61 Telecomunicaciones.","Bajo"]
[null,null,null,"_32_Intermediación_financiera_bienes_raíces_alquiler","64 Servicios financieros, excepto seguros y fondos de pensiones.","Bajo"]
[null,null,null,"_32_Intermediación_financiera_bienes_raíces_alquiler","65 Seguros, reaseguros y fondos de pensiones, excepto Seguridad Social obligatoria.","Bajo"]
[null,null,null,"_32_Intermediación_financiera_bienes_raíces_alquiler","66 Actividades auxiliares a los servicios financieros y a los seguros.","Bajo"]
[null,null,null,"_32_Intermediación_financiera_bienes_raíces_alquiler","68 Actividades inmobiliarias.","Bajo"]
[null,null,null,"_32_Intermediación_financiera_bienes_raíces_alquiler","77 Actividades de alquiler","Bajo"]
[null,null,null,"_33_Tecnología_de_la_información","58.2 Edición de programas informáticos","Bajo"]
[null,null,null,"_33_Tecnología_de_la_información","62 Programación, consultoría y otras actividades relacionadas con la informática.","Bajo"]
[null,null,null,"_33_Tecnología_de_la_información","63.1 Proceso de datos, hosting y actividades relacionadas; portales web.","Bajo"]
[null,null,null,"_34_Servicios_de_ingeniería","71 Servicios técnicos de arquitectura e ingeniería; ensayos y análisis técnicos.","Medio"]
[null,null,null,"_34_Servicios_de_ingeniería","72 Investigación y desarrollo.","Medio"]
[null,null,null,"_34_Servicios_de_ingeniería","74 Otras actividades profesionales, científicas y técnicas.","Medio"]
[null,null,null,"_34_Servicios_de_ingeniería","74.1 Actividades de diseño especializado.","Medio"]
[null,null,null,"_34_Servicios_de_ingeniería","74.9 Otras actividades profesionales, científicas y técnicas n.c.o.p.","Medio"]
[null,null,null,"_35_Otros_servicios","69 Actividades jurídicas y de contabilidad.","Bajo"]
[null,null,null,"_35_Otros_servicios","70 Actividades de las sedes centrales; actividades de consultoría de gestión empresarial.","Medio"]
[null,null,null,"_35_Otros_servicios","73 Publicidad y estudios de mercado.","Bajo"]
[null,null,null,"_35_Otros_servicios","74.2 Actividades de fotografía.","Medio"]
[null,null,null,"_35_Otros_servicios","74.3 Actividades de traducción e interpretación.","Bajo"]
[null,null,null,"_35_Otros_servicios","78 Actividades relacionadas con el empleo.","Bajo"]
[null,null,null,"_35_Otros_servicios","80 Actividades de seguridad e investigación.","Medio"]
[null,null,null,"_35_Otros_servicios","81 Servicios a edificios y actividades de jardinería.","Medio"]
[null,null,null,"_35_Otros_servicios","82 Actividades administrativas de oficina y otras actividades auxiliares a las empresas.","Bajo"]
[null,null,null,"_36_Administración_pública","84 Administración Pública y defensa; Seguridad Social obligatoria.","Bajo"]
[null,null,null,"_37_Educación","85 Educación.","Bajo"]
[null,null,null,"_38_Salud_y_trabajo_social","75 Actividades veterinarias.","Alto"]
[null,null,null,"_38_Salud_y_trabajo_social","86 Actividades sanitarias","Alto"]
[null,null,null,"_38_Salud_y_trabajo_social","87 Asistencia en establecimientos residenciales","Alto"]
[null,null,null,"_38_Salud_y_trabajo_social","88 Actividades de servicios sociales sin alojamiento.","Alto"]
[null,null,null,"_39_Otras_actividades_sociales","37 Recogida y tratamiento de aguas residuales","Alto"]
[null,null,null,"_39_Otras_actividades_sociales ","38.1 Recogida de residuos.","Alto"]
[null,null,null,"_39_Otras_actividades_sociales ","38.2 Tratamiento y eliminación de residuos.","Alto"]
[null,null,null,"_39_Otras_actividades_sociales ","39 Actividades de descontaminación y otros servicios de gestión de residuos.","Alto"]
[null,null,null,"_39_Otras_actividades_sociales ","59.1 Actividades cinematográficas, de vídeo y de programas de televisión.","Medio"]
[null,null,null,"_39_Otras_actividades_sociales ","60 Actividades cinematográficas, de vídeo y de programas de televisión.","Medio"]
[null,null,null,"_39_Otras_actividades_sociales ","63.9 Otros servicios de información.","Medio"]
[null,null,null,"_39_Otras_actividades_sociales ","79 Actividades de agencias de viajes, operadores turísticos, servicios de reservas y actividades relacionadas con los mismos.","Medio"]
[null,null,null,"_39_Otras_actividades_sociales ","90 Actividades de creación, artísticas y espectáculos.","Medio"]
[null,null,null,"_39_Otras_actividades_sociales ","91 Actividades de bibliotecas, archivos, museos y otras actividades culturales.","Medio"]
[null,null,null,"_39_Otras_actividades_sociales ","92 Actividades de juegos de azar y apuestas","Medio"]
[null,null,null,"_39_Otras_actividades_sociales ","93 Actividades deportivas, recreativas y de entretenimiento.","Medio"]
[null,null,null,"_39_Otras_actividades_sociales ","94 Actividades asociativas.","Medio"]
[null,null,null,"_39_Otras_actividades_sociales ","95 Otros servicios personales.","Medio"]
[null,null,null,"_40_Dispositivos_médicos_productos_médicos","-","Medio"]